fUST/lending_fUST_20240429
["ID","MTS","AMOUNT","RATE_DAILY","PERIOD"]
[324827898,1714355438546,-500.0,0.00017068,3]
[324827899,1714355438555,-500.0,0.00017068,3]
[324827900,1714355438565,-500.0,0.00017068,3]
[324827901,1714355438575,-559.74,0.00017068,3]
[324827902,1714355438585,-500.0,0.00017068,3]
[324827903,1714355438595,-341.65381454,0.00017068,3]
[324827904,1714355438604,-582.19,0.00017068,3]
[324827905,1714355438614,-596.46721587,0.00017068,3]
[324827906,1714355438623,-568.5235273,0.00017068,3]
[324827907,1714355438632,-500.0,0.00017068,3]
[324827908,1714355438642,-500.0,0.00017068,3]
[324827909,1714355438652,-153.66047146,0.00017068,3]
[324827910,1714355438661,-767.05,0.00017068,3]
[324827911,1714355438671,-767.73,0.00017068,3]
[324827912,1714355438681,-1742.99,0.00017068,3]
[324827913,1714355438690,-500.0,0.00017068,3]
[324827914,1714355438699,-500.0,0.00017068,3]
[324827915,1714355438709,-518.78202221,0.00017068,3]
[324827916,1714355438718,-500.0,0.00017068,3]
[324827917,1714355438727,-500.0,0.00017068,3]
[324827918,1714355438737,-1543.59,0.00017068,3]
[324827919,1714355438746,-722.3,0.00017068,3]
[324827920,1714355438757,-500.0,0.00017068,3]
[324827921,1714355438766,-500.0,0.00017068,3]
[324827922,1714355438775,-500.0,0.00017068,3]
[324827923,1714355438785,-500.0,0.00017068,3]
[324827924,1714355438794,-891.13,0.00017068,3]
[324827925,1714355438803,-500.0,0.00017068,3]
[324827926,1714355438813,-387.10120771,0.00017068,3]
[324827927,1714355438822,-500.0,0.00017068,3]
[324827928,1714355438831,-604.58,0.00017068,3]
[324827929,1714355438841,-500.0,0.00017068,3]
[324827930,1714355438850,-2909.09,0.00017068,3]
[324827931,1714355438860,-464.50816679,0.00017068,3]
[324827932,1714355438870,-3303.58,0.00017068,3]
[324827933,1714355438879,-885.46,0.00017068,3]
[324827934,1714355438889,-151.0,0.00017068,3]
[324827935,1714355438898,-2705.9926248,0.00017068,3]
[324827936,1714355438910,-1002.1242,0.00017068,3]
[324827937,1714355438921,-806.45361511,0.00017068,3]
[324827951,1714355440504,-500.0,0.00016794,2]
[324827952,1714355440514,-489.06097433,0.00016796,2]
[324827953,1714355440524,-1503.65479376,0.00017068,3]
[324828057,1714355488603,2807.21953425,9.999e-05,2]
[324828058,1714355547232,362.29479417,9.999e-05,2]
[324828059,1714355602989,1576.53826808,9.999e-05,2]
[324828063,1714356286873,500.0,0.00016069,6]
[324828064,1714356333212,-300.0,0.00014109,2]
[324828065,1714356333232,-300.0,0.00014109,2]
[324828066,1714356333252,-1320.53902306,0.0001411,2]
[324828067,1714356338822,634.72,0.00015795,6]
[324828068,1714356339091,634.72,0.00016069,7]
[324828069,1714356394028,888.74,0.00015795,6]
[324828070,1714356394290,888.74,0.00016069,7]
[324828071,1714356402948,10110.43795742,0.00015795,6]
[324828072,1714356430175,-308.64235731,0.00013721,2]
[324828073,1714356430198,-256.23785787,0.00014109,2]
[324828074,1714356435213,-43.76214213,0.00014109,2]
[324828075,1714356435235,-5912.63227382,0.0001411,2]
[324828076,1714356438123,-17666.82870312,0.0001411,2]
[324828077,1714356438142,-166.666666,0.00014183,2]
[324828078,1714356438162,-634.72,0.00014699,2]
[324828079,1714356438182,-888.74,0.00014699,2]
[324828080,1714356438201,-14439.56,0.00014699,2]
[324828081,1714356438220,-500.0,0.00014699,2]
[324828082,1714356438242,-500.0,0.00014699,2]
[324828083,1714356438261,-1165.02,0.00014699,2]
[324828084,1714356438282,-22005.0,0.000147,2]
[324828085,1714356438304,-159.00591884,0.00014873,2]
[324828086,1714356438324,-634.72,0.00014973,3]
[324828087,1714356438346,-888.74,0.00014973,3]
[324828088,1714356438367,-14439.56,0.00014973,3]
[324828089,1714356438385,-512.97060279,0.00014973,3]
[324828090,1714356438408,-1165.02,0.00014973,3]
[324828091,1714356438426,-312.89043206,0.00015147,2]
[324828092,1714356438445,-159.00591884,0.00015148,2]
[324828093,1714356438464,-1192.4787733,0.00015246,2]
[324828094,1714356438486,-6035.19137579,0.00015246,2]
[324828095,1714356438504,-1906.18194652,0.00015246,2]
[324828096,1714356438523,-432.63906924,0.00015246,2]
[324828097,1714356438542,-500.0,0.00015247,2]
[324828098,1714356438561,-1784.42,0.00015247,2]
[324828099,1714356438581,-15934.6,0.00015247,2]
[324828100,1714356438600,-634.72,0.00015247,4]
[324828101,1714356438620,-1361.03,0.00015247,2]
[324828102,1714356438640,-500.0,0.00015247,2]
[324828103,1714356438659,-1829.76,0.00015247,2]
[324828104,1714356438679,-888.74,0.00015247,4]
[324828105,1714356438699,-14439.56,0.00015247,4]
[324828106,1714356438717,-500.0,0.00015247,2]
[324828107,1714356438737,-195.70159265,0.00015247,2]
[324828108,1714356438756,-1165.02,0.00015247,4]
[324828109,1714356438775,-357.31704565,0.00015247,2]
[324828110,1714356438794,-500.0,0.00015248,2]
[324828111,1714356438813,-500.0,0.00015248,2]
[324828112,1714356438832,-596.85,0.00015248,2]
[324828113,1714356438850,-500.0,0.00015248,2]
[324828114,1714356438870,-500.0,0.00015248,2]
[324828115,1714356438889,-500.0,0.00015248,2]
[324828116,1714356438909,-500.0,0.00015248,2]
[324828117,1714356438928,-500.0,0.00015248,2]
[324828118,1714356438947,-500.0,0.00015248,2]
[324828119,1714356439063,-500.0,0.00015248,2]
[324828120,1714356439112,-500.0,0.00015248,2]
[324828121,1714356439132,-505.77327264,0.00015248,2]
[324828122,1714356439152,-900.34312664,0.00015248,2]
[324828123,1714356443163,-349.21687336,0.00015248,2]
[324828124,1714356443183,-500.0,0.00015248,2]
[324828125,1714356443202,-500.0,0.00015248,2]
[324828126,1714356443220,-500.0,0.00015248,2]
[324828127,1714356443239,-1075.02,0.00015248,2]
[324828128,1714356443258,-500.0,0.00015248,2]
[324828129,1714356443278,-500.0,0.00015248,2]
[324828130,1714356443297,-500.0,0.00015248,2]
[324828131,1714356443317,-500.0,0.00015248,2]
[324828132,1714356443336,-500.0,0.00015248,2]
[324828133,1714356443355,-500.0,0.00015248,2]
[324828134,1714356443378,-263.69302716,0.00015248,2]
[324828135,1714356443401,-500.0,0.00015248,2]
[324828136,1714356443420,-500.0,0.00015248,2]
[324828137,1714356443442,-902.96,0.00015248,2]
[324828138,1714356443461,-500.0,0.00015248,2]
[324828139,1714356443480,-500.0,0.00015248,2]
[324828140,1714356443499,-513.54310824,0.00015248,2]
[324828141,1714356443517,-728.49,0.00015248,2]
[324828142,1714356443536,-500.0,0.00015248,2]
[324828143,1714356443555,-500.0,0.00015248,2]
[324828144,1714356443574,-500.0,0.00015248,2]
[324828145,1714356443593,-831.12,0.00015248,2]
[324828146,1714356443614,-500.0,0.00015248,2]
[324828147,1714356443633,-1022.83,0.00015248,2]
[324828148,1714356443652,-500.0,0.00015248,2]
[324828149,1714356443671,-513.28,0.00015248,2]
[324828150,1714356443690,-500.0,0.00015248,2]
[324828151,1714356443708,-500.0,0.00015248,2]
[324828152,1714356443727,-500.0,0.00015248,2]
[324828153,1714356443748,-500.0,0.00015248,2]
[324828154,1714356443902,-500.0,0.00015248,2]
[324828155,1714356443924,-500.0,0.00015248,2]
[324828156,1714356443945,-725.68,0.00015248,2]
[324828157,1714356443964,-53.45705114,0.00015248,2]
[324828158,1714356560089,-300.0,0.00014698,2]
[324828159,1714356560110,-6428.7,0.00014699,2]
[324828160,1714356560130,-536.42,0.00014699,2]
[324828161,1714356560150,-273.23797331,0.00014699,2]
[324828162,1714356560170,-500.0,0.00014699,2]
[324828163,1714356560191,-500.0,0.00014699,2]
[324828164,1714356560211,-6428.7,0.00014973,3]
[324828165,1714356560231,-536.42,0.00014973,3]
[324828166,1714356560251,-500.0,0.00014973,3]
[324828167,1714356560270,-500.0,0.00014973,3]
[324828168,1714356560289,-312.89043206,0.00015,2]
[324828169,1714356560309,-1153.71,0.00015247,2]
[324828170,1714356560329,-6428.7,0.00015247,4]
[324828171,1714356560348,-735.75,0.00015247,2]
[324828172,1714356560368,-1670.36,0.00015247,2]
[324828173,1714356560388,-536.42,0.00015247,4]
[324828174,1714356560410,-500.0,0.00015247,2]
[324828175,1714356560432,-500.0,0.00015247,2]
[324828176,1714356560452,-500.0,0.00015247,4]
[324828177,1714356560473,-3028.28,0.00015247,2]
[324828178,1714356560493,-500.0,0.00015247,4]
[324828179,1714356560513,-5667.54,0.00015247,2]
[324828180,1714356560532,-446.54294886,0.00015248,2]
[324828181,1714356560551,-500.0,0.00015248,2]
[324828182,1714356560569,-500.0,0.00015248,2]
[324828183,1714356560589,-500.0,0.00015248,2]
[324828184,1714356560608,-1703.83,0.00015248,2]
[324828185,1714356560627,-500.0,0.00015248,2]
[324828186,1714356560646,-430.55764577,0.00015248,2]
[324828187,1714356560816,-103.12235423,0.00015248,2]
[324828188,1714356560836,-500.0,0.00015248,2]
[324828189,1714356560855,-1957.58,0.00015248,2]
[324828190,1714356560873,-500.0,0.00015248,2]
[324828191,1714356560892,-500.0,0.00015248,2]
[324828192,1714356560910,-703.13,0.00015248,2]
[324828193,1714356560928,-500.0,0.00015248,2]
[324828194,1714356560949,-828.54,0.00015248,2]
[324828195,1714356560968,-500.0,0.00015248,2]
[324828196,1714356560988,-500.0,0.00015248,2]
[324828197,1714356561006,-500.0,0.00015248,2]
[324828198,1714356561025,-500.0,0.00015248,2]
[324828199,1714356561044,-500.0,0.00015248,2]
[324828200,1714356561063,-500.0,0.00015248,2]
[324828201,1714356561082,-1414.96,0.00015248,2]
[324828202,1714356561101,-1058.89,0.00015248,2]
[324828203,1714356561119,-501.21765011,0.00015248,2]
[324828204,1714356561138,-500.0,0.00015248,2]
[324828205,1714356561158,-500.0,0.00015248,2]
[324828206,1714356561178,-662.11,0.00015248,2]
[324828207,1714356561197,-554.2,0.00015248,2]
[324828208,1714356561218,-500.0,0.00015248,2]
[324828209,1714356561236,-699.29,0.00015248,2]
[324828210,1714356561256,-500.0,0.00015248,2]
[324828211,1714356561275,-816.87,0.00015248,2]
[324828212,1714356561294,-500.0,0.00015248,2]
[324828213,1714356561312,-1737.6,0.00015248,2]
[324828214,1714356561331,-500.0,0.00015248,2]
[324828215,1714356561350,-2499.71,0.00015248,2]
[324828216,1714356561369,-500.0,0.00015248,2]
[324828217,1714356561387,-538.7086934,0.00015248,2]
[324828218,1714356561408,-1936.18,0.00015248,2]
[324828219,1714356561433,-500.0,0.00015248,2]
[324828220,1714356561452,-500.0,0.00015248,2]
[324828221,1714356561475,-500.0,0.00015248,2]
[324828222,1714356561495,-151.0,0.00015248,2]
[324828223,1714356561516,-500.0,0.00015248,2]
[324828224,1714356561536,-500.0,0.00015248,2]
[324828225,1714356561555,-500.0,0.00015248,2]
[324828226,1714356561574,-500.0,0.00015248,2]
[324828227,1714356561592,-500.0,0.00015248,2]
[324828228,1714356561612,-500.0,0.00015248,2]
[324828229,1714356561631,-3990.11,0.00015248,2]
[324828230,1714356561651,-500.0,0.00015248,2]
[324828231,1714356561670,-500.0,0.00015248,2]
[324828232,1714356561690,-678.25,0.00015248,2]
[324828233,1714356561708,-2286.47,0.00015248,2]
[324828234,1714356561729,-500.0,0.00015248,2]
[324828235,1714356561748,-645.93,0.00015248,2]
[324828236,1714356561769,-500.0,0.00015248,2]
[324828237,1714356561789,-500.0,0.00015248,2]
[324828238,1714356561808,-500.0,0.00015248,2]
[324828239,1714356561827,-2666.66,0.00015248,2]
[324828240,1714356561846,-501.97296484,0.00015248,2]
[324828241,1714356561865,-500.0,0.00015248,2]
[324828242,1714356561884,-519.59756835,0.00015248,2]
[324828243,1714356561907,-608.09,0.00015248,2]
[324828244,1714356561927,-811.67,0.00015248,2]
[324828245,1714356561945,-500.0,0.00015248,2]
[324828246,1714356561964,-500.0,0.00015248,2]
[324828247,1714356561985,-1732.28,0.00015248,2]
[324828248,1714356562006,-652.88,0.00015248,2]
[324828249,1714356562025,-639.78,0.00015248,2]
[324828250,1714356562045,-500.0,0.00015248,2]
[324828251,1714356562064,-500.0,0.00015248,2]
[324828252,1714356562083,-500.0,0.00015248,2]
[324828253,1714356562101,-500.0,0.00015248,2]
[324828254,1714356562121,-523.24244975,0.00015248,2]
[324828255,1714356562141,-813.57,0.00015248,2]
[324828256,1714356562159,-500.0,0.00015248,2]
[324828257,1714356562177,-500.0,0.00015248,2]
[324828258,1714356562195,-500.0,0.00015248,2]
[324828259,1714356562213,-503.03698532,0.00015248,2]
[324828260,1714356562235,-238.74512853,0.00015248,2]
[324828261,1714356562255,-500.0,0.00015248,2]
[324828262,1714356562275,-500.0,0.00015248,2]
[324828263,1714356562293,-950.6,0.00015248,2]
[324828264,1714356562312,-500.0,0.00015248,2]
[324828265,1714356562331,-647.11,0.00015248,2]
[324828266,1714356562350,-500.0,0.00015248,2]
[324828267,1714356562369,-500.0,0.00015248,2]
[324828268,1714356562387,-387.84512121,0.00015248,2]
[324828269,1714356562407,-586.41193791,0.00015248,2]
[324828270,1714356562429,-500.0,0.00015248,2]
[324828271,1714356562448,-506.46430035,0.00015248,2]
[324828272,1714356562470,-661.94,0.00015248,2]
[324828273,1714356562490,-848.64,0.00015248,2]
[324828274,1714356562510,-500.0,0.00015248,2]
[324828275,1714356562529,-500.0,0.00015248,2]
[324828276,1714356562550,-5378.0,0.00015248,2]
[324828277,1714356562569,-784.42,0.00015248,2]
[324828278,1714356562587,-500.0,0.00015248,2]
[324828279,1714356562606,-505.0342783,0.00015248,2]
[324828280,1714356562624,-500.0,0.00015248,2]
[324828281,1714356562643,-500.0,0.00015248,2]
[324828282,1714356562661,-500.0,0.00015248,2]
[324828283,1714356562679,-500.0,0.00015248,2]
[324828284,1714356562697,-184.64330526,0.00015248,2]
[324828285,1714356562716,-500.0,0.00015248,2]
[324828286,1714356562737,-500.0,0.00015248,2]
[324828287,1714356562755,-500.0,0.00015248,2]
[324828288,1714356562776,-2784.19,0.00015248,2]
[324828289,1714356562794,-525.71459557,0.00015248,2]
[324828290,1714356562813,-500.0,0.00015248,2]
[324828291,1714356562832,-155.2969986,0.00015248,2]
[324828292,1714356562851,-500.0,0.00015248,2]
[324828293,1714356562870,-500.0,0.00015248,2]
[324828294,1714356562890,-500.0,0.00015248,2]
[324828295,1714356562910,-500.0,0.00015248,2]
[324828296,1714356562929,-500.0,0.00015248,2]
[324828297,1714356562948,-500.0,0.00015248,2]
[324828298,1714356562969,-500.0,0.00015248,2]
[324828299,1714356563095,-1237.76,0.00015248,2]
[324828300,1714356563123,-500.0,0.00015248,2]
[324828301,1714356563143,-497.48190167,0.00015248,2]
[324828302,1714356563163,-500.0,0.00015248,2]
[324828303,1714356563184,-500.0,0.00015248,2]
[324828304,1714356563203,-500.0,0.00015248,2]
[324828305,1714356563224,-500.0,0.00015248,2]
[324828306,1714356563244,-500.0,0.00015248,2]
[324828307,1714356563264,-500.0,0.00015248,2]
[324828308,1714356563284,-500.0,0.00015248,2]
[324828309,1714356563306,-500.0,0.00015248,2]
[324828310,1714356563326,-500.0,0.00015248,2]
[324828311,1714356563347,-1017.21,0.00015248,2]
[324828312,1714356563367,-680.22,0.00015248,2]
[324828313,1714356563387,-2875.08,0.00015248,2]
[324828314,1714356563407,-500.0,0.00015248,2]
[324828315,1714356563430,-647.98,0.00015248,2]
[324828316,1714356563452,-605.16852891,0.00015248,2]
[324828317,1714356563473,-579.92,0.00015248,2]
[324828318,1714356563493,-2468.85,0.00015248,2]
[324828319,1714356563516,-500.0,0.00015248,2]
[324828320,1714356563538,-500.0,0.00015248,2]
[324828321,1714356563557,-661.32,0.00015248,2]
[324828322,1714356563577,-500.0,0.00015248,2]
[324828323,1714356563596,-500.0,0.00015248,2]
[324828324,1714356563616,-853.11,0.00015248,2]
[324828325,1714356563635,-1574.44,0.00015248,2]
[324828326,1714356563657,-500.0,0.00015248,2]
[324828327,1714356563676,-566.29,0.00015248,2]
[324828328,1714356563698,-500.0,0.00015248,2]
[324828329,1714356563720,-500.0,0.00015248,2]
[324828330,1714356563739,-504.31403817,0.00015248,2]
[324828331,1714356563758,-500.0,0.00015248,2]
[324828332,1714356563777,-500.0,0.00015248,2]
[324828333,1714356563796,-962.89,0.00015248,2]
[324828334,1714356563814,-500.0,0.00015248,2]
[324828335,1714356563833,-4718.26,0.00015248,2]
[324828336,1714356563853,-500.0,0.00015248,2]
[324828337,1714356563872,-500.0,0.00015248,2]
[324828338,1714356563893,-857.82,0.00015248,2]
[324828339,1714356563914,-500.0,0.00015248,2]
[324828340,1714356563935,-500.0,0.00015248,2]
[324828341,1714356563955,-500.0,0.00015248,2]
[324828342,1714356563977,-500.0,0.00015248,2]
[324828343,1714356563998,-500.0,0.00015248,2]
[324828344,1714356564019,-3507.91,0.00015248,2]
[324828345,1714356564039,-500.0,0.00015248,2]
[324828346,1714356564057,-500.0,0.00015248,2]
[324828347,1714356564076,-500.0,0.00015248,2]
[324828348,1714356564096,-680.87,0.00015248,2]
[324828349,1714356564116,-500.0,0.00015248,2]
[324828350,1714356564137,-787.69,0.00015248,2]
[324828351,1714356564156,-805.69,0.00015248,2]
[324828352,1714356564174,-648.65,0.00015248,2]
[324828353,1714356564194,-570.39,0.00015248,2]
[324828354,1714356564213,-500.0,0.00015248,2]
[324828355,1714356564234,-327.73013134,0.00015248,2]
[324828356,1714356579512,845.428221,0.000245,60]
[324828401,1714356632430,-300.0,0.00014698,2]
[324828403,1714356632444,-500.0,0.00014699,2]
[324828405,1714356632453,-1710.07,0.00014699,2]
[324828406,1714356632462,-15270.66,0.00014699,2]
[324828408,1714356632471,-2555.55,0.00014699,2]
[324828410,1714356632480,-777.85,0.00014699,2]
[324828425,1714356632605,-1304.32,0.00014699,2]
[324828428,1714356632615,-613.12,0.00014699,2]
[324828431,1714356632626,-703.58,0.00014699,2]
[324828434,1714356632635,-500.0,0.00014699,2]
[324828437,1714356632644,-779.67,0.00014699,2]
[324828440,1714356632653,-12213.34,0.00014699,2]
[324828442,1714356632663,-500.0,0.00014699,2]
[324828444,1714356632672,-597.93,0.00014972,2]
[324828446,1714356632681,-500.0,0.00014973,3]
[324828448,1714356632690,-1710.07,0.00014973,3]
[324828450,1714356632700,-15270.66,0.00014973,3]
[324828452,1714356632710,-2555.55,0.00014973,3]
[324828454,1714356632719,-777.85,0.00014973,3]
[324828456,1714356632728,-1304.32,0.00014973,3]
[324828458,1714356632738,-613.12,0.00014973,3]
[324828460,1714356632747,-703.58,0.00014973,3]
[324828462,1714356632756,-500.0,0.00014973,3]
[324828464,1714356632766,-779.67,0.00014973,3]
[324828466,1714356632775,-12213.34,0.00014973,3]
[324828468,1714356632785,-500.0,0.00014973,3]
[324828470,1714356632794,-154.79876161,0.00015246,2]
[324828472,1714356632804,-597.93,0.00015246,3]
[324828474,1714356632813,-500.0,0.00015247,4]
[324828476,1714356632822,-1710.07,0.00015247,4]
[324828478,1714356632832,-15270.66,0.00015247,4]
[324828480,1714356632842,-2555.55,0.00015247,4]
[324828482,1714356632851,-5153.92,0.00015247,2]
[324828484,1714356632861,-777.85,0.00015247,4]
[324828487,1714356632871,-1304.32,0.00015247,4]
[324828489,1714356632880,-613.12,0.00015247,4]
[324828491,1714356632889,-703.58,0.00015247,4]
[324828493,1714356632899,-2668.18,0.00015247,2]
[324828495,1714356632909,-500.0,0.00015247,4]
[324828497,1714356632918,-779.67,0.00015247,4]
[324828498,1714356632927,-12213.34,0.00015247,4]
[324828500,1714356632936,-500.0,0.00015247,2]
[324828503,1714356632946,-500.0,0.00015247,2]
[324828504,1714356632955,-500.0,0.00015247,2]
[324828506,1714356632964,-500.0,0.00015247,4]
[324828509,1714356632974,-172.26986866,0.00015248,2]
[324828511,1714356632983,-500.0,0.00015248,2]
[324828513,1714356632992,-500.0,0.00015248,2]
[324828515,1714356633001,-500.0,0.00015248,2]
[324828517,1714356633011,-500.0,0.00015248,2]
[324828519,1714356633020,-500.0,0.00015248,2]
[324828521,1714356633030,-500.0,0.00015248,2]
[324828523,1714356633039,-874.39,0.00015248,2]
[324828525,1714356633049,-500.0,0.00015248,2]
[324828527,1714356633059,-2127.04,0.00015248,2]
[324828528,1714356633068,-500.0,0.00015248,2]
[324828531,1714356633077,-15843.59,0.00015248,2]
[324828533,1714356633086,-500.0,0.00015248,2]
[324828535,1714356633096,-500.0,0.00015248,2]
[324828537,1714356633105,-99.38262303,0.00015248,2]
[324828636,1714356638562,-655.37,0.00014699,2]
[324828638,1714356638572,-1753.52,0.00014699,2]
[324828640,1714356638581,-655.37,0.00014973,3]
[324828642,1714356638590,-1753.52,0.00014973,3]
[324828644,1714356638600,-655.37,0.00015247,4]
[324828646,1714356638610,-1753.52,0.00015247,4]
[324828648,1714356638619,-400.61737697,0.00015248,2]
[324828650,1714356638628,-500.0,0.00015248,2]
[324828652,1714356638637,-500.0,0.00015248,2]
[324828654,1714356638647,-500.0,0.00015248,2]
[324828656,1714356638656,-500.0,0.00015248,2]
[324828658,1714356638665,-694.44,0.00015248,2]
[324828660,1714356638674,-553.55,0.00015248,2]
[324828662,1714356638684,-650.11,0.00015248,2]
[324828664,1714356638693,-872.26,0.00015248,2]
[324828666,1714356638703,-500.0,0.00015248,2]
[324828668,1714356638713,-860.32,0.00015248,2]
[324828670,1714356638722,-500.0,0.00015248,2]
[324828672,1714356638732,-500.0,0.00015248,2]
[324828674,1714356638742,-500.0,0.00015248,2]
[324828676,1714356638753,-500.0,0.00015248,2]
[324828678,1714356638763,-1127.16,0.00015248,2]
[324828680,1714356638774,-500.0,0.00015248,2]
[324828682,1714356638785,-1333.73110259,0.00015248,2]
[324828684,1714356638808,-687.83889741,0.00015248,2]
[324828686,1714356638819,-500.0,0.00015248,2]
[324828688,1714356638830,-500.0,0.00015248,2]
[324828690,1714356638841,-500.0,0.00015248,2]
[324828692,1714356638852,-813.11,0.00015248,2]
[324828694,1714356638864,-500.0,0.00015248,2]
[324828696,1714356638876,-427.82496682,0.00015248,2]
[324828698,1714356638888,-500.0,0.00015248,2]
[324828700,1714356638899,-500.0,0.00015248,2]
[324828702,1714356638910,-518.49801511,0.00015248,2]
[324828704,1714356638921,-200.95994268,0.00015248,2]
[324828706,1714356638933,-500.0,0.00015249,3]
[324828708,1714356638944,-9290.28,0.00015249,2]
[324828710,1714356638955,-500.0,0.00015249,2]
[324828712,1714356638966,-500.0,0.00015249,2]
[324828714,1714356638977,-650.11,0.00015249,3]
[324828716,1714356638989,-155.6308282,0.0001552,2]
[324828718,1714356639000,-530.01694287,0.0001552,4]
[324828730,1714356639950,-67.91305713,0.0001552,4]
[324828731,1714356639962,-500.0,0.00015521,3]
[324828732,1714356639975,-1165.02,0.00015521,5]
[324828733,1714356639987,-1153.71,0.00015521,3]
[324828734,1714356640001,-5427.50130198,0.00015521,5]
[324828735,1714356640016,-1001.19869802,0.00015521,5]
[324828736,1714356640029,-735.75,0.00015521,3]
[324828737,1714356640045,-596.19426912,0.00015521,3]
[324828738,1714356640060,-1074.16573088,0.00015521,3]
[324828739,1714356640072,-536.42,0.00015521,5]
[324828741,1714356640084,-500.0,0.00015521,3]
[324828743,1714356640097,-301.68615211,0.00015521,3]
[324828744,1714356640109,-165.69748921,0.00015521,5]
[324828875,1714356646539,-500.0,0.00014699,2]
[324828876,1714356646549,-452.31365548,0.00014699,2]
[324828877,1714356647112,-47.68634452,0.00014699,2]
[324828878,1714356647121,-500.0,0.00014973,3]
[324828879,1714356647131,-500.0,0.00014973,3]
[324828880,1714356647140,-500.0,0.00015247,2]
[324828881,1714356647150,-500.0,0.00015247,4]
[324828882,1714356647159,-500.0,0.00015247,4]
[324828883,1714356647168,-500.0,0.00015248,2]
[324828884,1714356647177,-229.71365548,0.00015248,2]
[324828885,1714356666274,1491.68295957,9.999e-05,2]
[324828886,1714356677936,154.79876161,0.000225,30]
[324828887,1714356787956,362.29479417,9.999e-05,2]
[324828888,1714356868313,500.0,0.00015521,10]
[324828889,1714356868563,500.0,0.00015522,11]
[324828890,1714356868834,500.0,0.00015794,12]
[324828891,1714356869127,500.0,0.00015795,13]
[324828892,1714356869399,500.0,0.00015795,14]
[324828893,1714356869775,554.66682545,0.00015795,15]
[324828895,1714356987366,2807.21953425,9.999e-05,2]
[324828896,1714357157487,409.22868854,9.999e-05,2]
[324828897,1714357326040,1576.53826808,9.999e-05,2]
[324828898,1714357440189,501.7727492,0.00015521,10]
[324828899,1714357531189,-300.0,0.00013417,2]
[324828900,1714357531208,-300.0,0.00013417,2]
[324828901,1714357531228,-1732.99742936,0.00013418,2]
[324828902,1714357585754,502.21740846,0.0001552,10]
[324828903,1714357592119,-272.67562827,0.00013314,2]
[324828904,1714357627116,-206.84672773,0.00013314,2]
[324828905,1714357627139,-300.0,0.00013417,2]
[324828906,1714357627162,-3947.6692531,0.00013418,2]
[324828907,1714357644104,-11056.3270796,0.00013418,2]
[324828908,1714357645096,-2166.11498084,0.00013418,2]
[324828909,1714357649150,-4311.27100756,0.00013418,2]
[324828910,1714357749167,-1685.62024954,0.00013418,2]
[324828911,1714357749187,-443.228487,0.00013591,2]
[324828912,1714357749206,-166.666666,0.00013699,2]
[324828913,1714357749226,-539.66067906,0.00014596,2]
[324828914,1714357749246,-478.5838585,0.00014597,2]
[324828915,1714357749266,-478.58385848,0.00014597,2]
[324828916,1714357749285,-478.58385848,0.00014598,2]
[324828917,1714357749306,-478.58385848,0.00014598,2]
[324828918,1714357749325,-478.58385848,0.00014598,2]
[324828919,1714357749347,-500.0,0.00014695,2]
[324828920,1714357749368,-300.0,0.00014695,2]